[Event "*** Titled Tuesday 3|2 Blitz"]
[Site "Chess.com"]
[Date "2016.01.05"]
[Round "7"]
[White "the_drake"]
[Black "ZEN-22"]
[Result "0-1"]
[WhiteElo "2025"]
[BlackElo "2399"]
[TimeControl "180+2"]
[EndTime "12:25:24 PST"]
[Termination "ZEN-22 won by resignation"]

1. e4 {[%clk 0:03:01.9]} 1... c5 {[%clk 0:02:58.3]} 2. Nf3 {[%clk 0:03:02.7]}
2... Nf6 {[%clk 0:02:59.8]} 3. Nc3 {[%clk 0:03:03]} 3... d5 {[%clk 0:02:59.8]}
4. exd5 {[%clk 0:03:03.3]} 4... Nxd5 {[%clk 0:03:00]} 5. Bb5+ {[%clk 0:03:04.7]}
5... Bd7 {[%clk 0:03:01.1]} 6. Bxd7+ {[%clk 0:02:45.1]} 6... Qxd7 {[%clk
0:03:01.4]} 7. Nxd5 {[%clk 0:02:46.7]} 7... Qxd5 {[%clk 0:03:02.2]} 8. O-O
{[%clk 0:02:48.3]} 8... Nc6 {[%clk 0:03:03.3]} 9. b3 {[%clk 0:02:42.4]} 9... e6
{[%clk 0:03:02.8]} 10. Bb2 {[%clk 0:02:43.7]} 10... Be7 {[%clk 0:03:04]} 11. Rb1
{[%clk 0:02:30.8]} 11... Bf6 {[%clk 0:03:03.6]} 12. Bxf6 {[%clk 0:02:31]} 12...
gxf6 {[%clk 0:03:04.3]} 13. Kh1 {[%clk 0:02:24.9]} 13... h5 {[%clk 0:03:04.2]}
14. d3 {[%clk 0:02:22.2]} 14... h4 {[%clk 0:03:04.8]} 15. Qe2 {[%clk 0:02:21.6]}
15... h3 {[%clk 0:03:04.3]} 16. Qe4 {[%clk 0:02:11.5]} 16... hxg2+ {[%clk
0:03:04.1]} 17. Kxg2 {[%clk 0:02:12.8]} 17... Qh5 {[%clk 0:03:00.8]} 18. Rg1
{[%clk 0:02:03.5]} 18... O-O-O {[%clk 0:03:01.7]} 19. Kf1 {[%clk 0:01:57.8]}
19... f5 {[%clk 0:03:03.1]} 20. Qe3 {[%clk 0:01:52.2]} 20... Nd4 {[%clk
0:03:02.1]} 21. Nxd4 {[%clk 0:01:49.8]} 21... cxd4 {[%clk 0:03:04]} 22. Qe5
{[%clk 0:01:43.9]} 22... Qxh2 {[%clk 0:03:04.3]} 23. Qxh2 {[%clk 0:01:43.2]}
23... Rxh2 {[%clk 0:03:06.2]} 24. Ke2 {[%clk 0:01:44.7]} 24... Rd5 {[%clk
0:03:05.9]} 25. Rg7 {[%clk 0:01:45.9]} 25... Re5+ {[%clk 0:03:06.9]} 26. Kf3
{[%clk 0:01:45.8]} 26... Rc5 {[%clk 0:03:07.7]} 27. Rc1 {[%clk 0:01:42.1]} 27...
Rc7 {[%clk 0:03:07.6]} 28. Kg3 {[%clk 0:01:41.3]} 28... Rh8 {[%clk 0:03:07.6]}
29. Kf4 {[%clk 0:01:42.3]} 29... Kd8 {[%clk 0:03:05.5]} 30. Ke5 {[%clk
0:01:41.5]} 30... Ke7 {[%clk 0:03:00.4]} 31. Kxd4 {[%clk 0:01:39.3]} 31... Kf6
{[%clk 0:02:51.5]} 32. Rg2 {[%clk 0:01:35.5]} 32... Rd8+ {[%clk 0:02:49.7]} 33.
Ke3 {[%clk 0:01:35.7]} 33... f4+ {[%clk 0:02:50.8]} 34. Ke2 {[%clk 0:01:13.1]}
34... f3+ {[%clk 0:02:48.6]} 35. Kxf3 {[%clk 0:01:14.5]} 35... Rxd3+ {[%clk
0:02:49.9]} 36. Ke2 {[%clk 0:01:16]} 36... Rdc3 {[%clk 0:02:50.7]} 37. Kd2
{[%clk 0:01:16.4]} 37... b5 {[%clk 0:02:51.9]} 38. Rg4 {[%clk 0:01:12.6]} 38...
a5 {[%clk 0:02:52.2]} 39. a4 {[%clk 0:01:11.5]} 39... b4 {[%clk 0:02:53]} 40.
Rd4 {[%clk 0:01:05.9]} 40... Ke5 {[%clk 0:02:52.4]} 41. Rd3 {[%clk 0:01:06.7]}
41... Rxd3+ {[%clk 0:02:51.4]} 42. Kxd3 {[%clk 0:01:08.6]} 42... Rc3+ {[%clk
0:02:52.6]} 43. Kd2 {[%clk 0:01:09.3]} 43... Kf4 {[%clk 0:02:54.1]} 44. Rh1
{[%clk 0:01:06]} 44... f5 {[%clk 0:02:53.7]} 45. Rh6 {[%clk 0:01:03.2]} 45... e5
{[%clk 0:02:54.3]} 46. Ra6 {[%clk 0:01:01.7]} 46... Rc5 {[%clk 0:02:55.6]} 47.
Rf6 {[%clk 0:01:01.1]} 47... e4 {[%clk 0:02:56.3]} 48. Ra6 {[%clk 0:00:51.8]}
48... Kf3 {[%clk 0:02:57.1]} 49. Ke1 {[%clk 0:00:53.1]} 49... f4 {[%clk
0:02:55.6]} 50. Ra7 {[%clk 0:00:51.3]} 50... Rxc2 {[%clk 0:02:55.4]} 51. Rxa5
{[%clk 0:00:51.7]} 51... Re2+ {[%clk 0:02:56.3]} 52. Kd1 {[%clk 0:00:52.6]}
52... Rxf2 {[%clk 0:02:57.4]} 53. Rb5 {[%clk 0:00:53.2]} 53... Ra2 {[%clk
0:02:56.9]} 54. Rxb4 {[%clk 0:00:53.7]} 54... e3 {[%clk 0:02:58.3]} 0-1

[Event "*** Titled Tuesday 3|2 Blitz"]
[Site "Chess.com"]
[Date "2016.01.05"]
[Round "7"]
[White "AvitalBor"]
[Black "GargleBlaster"]
[Result "1-0"]
[WhiteElo "2347"]
[BlackElo "2242"]
[TimeControl "180+2"]
[EndTime "12:25:57 PST"]
[Termination "AvitalBor won on time"]

1. b3 {[%clk 0:03:01.9]} 1... c5 {[%clk 0:02:58.4]} 2. Bb2 {[%clk 0:03:03.8]}
2... Nc6 {[%clk 0:02:59]} 3. f4 {[%clk 0:03:02.8]} 3... Nf6 {[%clk 0:02:56.5]}
4. Nf3 {[%clk 0:03:01]} 4... d6 {[%clk 0:02:56.7]} 5. g3 {[%clk 0:02:57.6]} 5...
g6 {[%clk 0:02:18.2]} 6. Bg2 {[%clk 0:02:59.5]} 6... Bg7 {[%clk 0:02:19.1]} 7.
O-O {[%clk 0:02:55.6]} 7... O-O {[%clk 0:02:19.7]} 8. c4 {[%clk 0:02:41.7]} 8...
e5 {[%clk 0:02:18.3]} 9. fxe5 {[%clk 0:02:35.8]} 9... Ng4 {[%clk 0:02:19.1]} 10.
Nc3 {[%clk 0:02:31.3]} 10... Ngxe5 {[%clk 0:01:55.4]} 11. Nxe5 {[%clk
0:02:29.1]} 11... Nxe5 {[%clk 0:01:35.1]} 12. Qc1 {[%clk 0:01:57.1]} 12... Rb8
{[%clk 0:01:33.3]} 13. Nd5 {[%clk 0:01:57]} 13... b5 {[%clk 0:01:32.6]} 14. d3
{[%clk 0:01:57]} 14... bxc4 {[%clk 0:01:31.9]} 15. dxc4 {[%clk 0:01:58.8]} 15...
Bg4 {[%clk 0:01:28.7]} 16. Qd2 {[%clk 0:01:56.3]} 16... Nxc4 {[%clk 0:01:25.5]}
17. bxc4 {[%clk 0:01:51.4]} 17... Rxb2 {[%clk 0:01:26.5]} 18. Qf4 {[%clk
0:01:44]} 18... Bxe2 {[%clk 0:01:15.5]} 19. Rfe1 {[%clk 0:01:40.9]} 19... Bd4+
{[%clk 0:00:34.5]} 20. Kh1 {[%clk 0:01:39]} 20... Bxc4 {[%clk 0:00:35.7]} 21.
Rad1 {[%clk 0:01:35.1]} 21... Rxg2 {[%clk 0:00:27.9]} 22. Rxd4 {[%clk
0:01:30.9]} 22... Bxd5 {[%clk 0:00:26.1]} 23. Rxd5 {[%clk 0:01:29.5]} 23... Qa8
{[%clk 0:00:24.4]} 24. Red1 {[%clk 0:01:21.7]} 24... Rxa2 {[%clk 0:00:21.2]} 25.
Qxd6 {[%clk 0:01:22]} 25... Re8 {[%clk 0:00:20.3]} 26. Qxc5 {[%clk 0:01:15.2]}
26... Ree2 {[%clk 0:00:17.2]} 27. Kg1 {[%clk 0:01:15.1]} 27... Rg2+ {[%clk
0:00:17.4]} 28. Kf1 {[%clk 0:01:15.3]} 28... Kg7 {[%clk 0:00:06.4]} 29. Qd4+
{[%clk 0:01:14]} 29... Kh6 {[%clk 0:00:06.3]} 30. Rh5+ {[%clk 0:00:44.7]} 1-0

[Event "*** Titled Tuesday 3|2 Blitz"]
[Site "Chess.com"]
[Date "2016.01.05"]
[Round "7"]
[White "Colombiano07"]
[Black "Cecile_Haussernot"]
[Result "1-0"]
[WhiteElo "2173"]
[BlackElo "2214"]
[TimeControl "180+2"]
[EndTime "12:26:02 PST"]
[Termination "Colombiano07 won by resignation"]

1. e4 {[%clk 0:03:01.9]} 1... c5 {[%clk 0:03:00.5]} 2. Nf3 {[%clk 0:03:02.1]}
2... d6 {[%clk 0:03:01.3]} 3. d4 {[%clk 0:03:02.7]} 3... cxd4 {[%clk 0:03:02.3]}
4. Nxd4 {[%clk 0:03:04.3]} 4... Nf6 {[%clk 0:03:03.4]} 5. f3 {[%clk 0:03:05.7]}
5... a6 {[%clk 0:02:59]} 6. c4 {[%clk 0:03:05.7]} 6... e5 {[%clk 0:02:59.3]} 7.
Nc2 {[%clk 0:03:04.5]} 7... Be7 {[%clk 0:02:53.8]} 8. Be3 {[%clk 0:03:02.2]}
8... Be6 {[%clk 0:02:47.5]} 9. Nc3 {[%clk 0:03:02]} 9... Nbd7 {[%clk 0:02:40.1]}
10. Qd2 {[%clk 0:02:59.1]} 10... Rc8 {[%clk 0:02:36.3]} 11. b3 {[%clk
0:02:53.9]} 11... O-O {[%clk 0:02:35.7]} 12. Rc1 {[%clk 0:02:50.6]} 12... Nh5
{[%clk 0:02:26.2]} 13. Be2 {[%clk 0:02:43.2]} 13... f5 {[%clk 0:02:17.2]} 14.
exf5 {[%clk 0:02:39.4]} 14... Bxf5 {[%clk 0:02:09.8]} 15. O-O {[%clk 0:02:38.4]}
15... Be6 {[%clk 0:01:52]} 16. g3 {[%clk 0:02:34.1]} 16... Qc7 {[%clk
0:01:43.9]} 17. Nb4 {[%clk 0:02:31.1]} 17... Nc5 {[%clk 0:01:42.2]} 18. Nbd5
{[%clk 0:02:30.6]} 18... Qd8 {[%clk 0:01:42.7]} 19. b4 {[%clk 0:02:28]} 19...
Nd7 {[%clk 0:01:42.8]} 20. Ne4 {[%clk 0:02:28.6]} 20... Bxd5 {[%clk 0:01:30.8]}
21. Qxd5+ {[%clk 0:02:27.6]} 21... Kh8 {[%clk 0:01:31.8]} 22. Nxd6 {[%clk
0:02:20]} 22... Bxd6 {[%clk 0:01:19.7]} 23. Qxd6 {[%clk 0:02:19.8]} 23... Rc6
{[%clk 0:01:21]} 24. Qd3 {[%clk 0:02:10.8]} 24... Qc7 {[%clk 0:01:13]} 25. f4
{[%clk 0:02:04.9]} 25... Nhf6 {[%clk 0:01:06.6]} 26. c5 {[%clk 0:01:59.7]} 26...
a5 {[%clk 0:00:57.3]} 27. b5 {[%clk 0:01:55.7]} 27... Re6 {[%clk 0:00:53.4]} 28.
f5 {[%clk 0:01:49.8]} 28... e4 {[%clk 0:00:52.5]} 29. Qd4 {[%clk 0:01:50.7]}
29... Ree8 {[%clk 0:00:38.1]} 30. Bf4 {[%clk 0:01:50.7]} 30... Ne5 {[%clk
0:00:39.2]} 31. c6 {[%clk 0:01:40]} 31... b6 {[%clk 0:00:33.7]} 32. Rfd1 {[%clk
0:01:38.4]} 32... Re7 {[%clk 0:00:22.3]} 33. Kg2 {[%clk 0:01:32.5]} 33... Ne8
{[%clk 0:00:22]} 34. Qd8 {[%clk 0:01:15.7]} 34... Qa7 {[%clk 0:00:16.2]} 35. c7
{[%clk 0:01:06.9]} 35... Qb7 {[%clk 0:00:10.6]} 36. c8=Q {[%clk 0:01:04.7]} 1-0

[Event "*** Titled Tuesday 3|2 Blitz"]
[Site "Chess.com"]
[Date "2016.01.05"]
[Round "7"]
[White "rdclayton"]
[Black "DeviatkinAndrey"]
[Result "0-1"]
[WhiteElo "2115"]
[BlackElo "2492"]
[TimeControl "180+2"]
[EndTime "12:26:10 PST"]
[Termination "DeviatkinAndrey won on time"]

1. d4 {[%clk 0:03:01.9]} 1... d5 {[%clk 0:02:59.9]} 2. c4 {[%clk 0:03:02.8]}
2... c6 {[%clk 0:03:01.2]} 3. Nc3 {[%clk 0:03:03]} 3... e5 {[%clk 0:03:00.9]} 4.
cxd5 {[%clk 0:02:55.4]} 4... cxd5 {[%clk 0:03:01.5]} 5. dxe5 {[%clk 0:02:50.9]}
5... d4 {[%clk 0:03:02.7]} 6. Nb1 {[%clk 0:02:47.1]} 6... Nc6 {[%clk 0:02:27.4]}
7. Nf3 {[%clk 0:02:45.7]} 7... Bg4 {[%clk 0:02:09.7]} 8. Nbd2 {[%clk 0:02:26.6]}
8... f6 {[%clk 0:01:33.5]} 9. exf6 {[%clk 0:02:23.5]} 9... Nxf6 {[%clk
0:01:34.6]} 10. g3 {[%clk 0:02:22.4]} 10... Qd7 {[%clk 0:01:09.4]} 11. Bg2
{[%clk 0:02:21]} 11... O-O-O {[%clk 0:00:58.3]} 12. O-O {[%clk 0:02:04.1]} 12...
Bh3 {[%clk 0:00:58.7]} 13. Nb3 {[%clk 0:01:56.5]} 13... Bxg2 {[%clk 0:00:48.1]}
14. Kxg2 {[%clk 0:01:58.4]} 14... Qd5 {[%clk 0:00:38.6]} 15. Bf4 {[%clk
0:01:53.5]} 15... h6 {[%clk 0:00:35.6]} 16. Rc1 {[%clk 0:01:42.6]} 16... g5
{[%clk 0:00:35.8]} 17. Be5 {[%clk 0:01:40.6]} 17... Be7 {[%clk 0:00:30.7]} 18.
Qxd4 {[%clk 0:00:48.4]} 18... g4 {[%clk 0:00:31.2]} 19. Qxa7 {[%clk 0:00:31.8]}
19... gxf3+ {[%clk 0:00:31.5]} 20. exf3 {[%clk 0:00:33.6]} 20... Qxe5 {[%clk
0:00:26.9]} 21. Na5 {[%clk 0:00:26.7]} 21... Qc7 {[%clk 0:00:23.7]} 22. Nxc6
{[%clk 0:00:08.5]} 22... bxc6 {[%clk 0:00:23.6]} 23. Qa6+ {[%clk 0:00:07.1]}
23... Kd7 {[%clk 0:00:20.6]} 24. Rfd1+ {[%clk 0:00:07.5]} 24... Ke8 {[%clk
0:00:21]} 25. Rxc6 {[%clk 0:00:06.2]} 25... Qb8 {[%clk 0:00:18.2]} 26. Re1
{[%clk 0:00:04.9]} 26... Kf7 {[%clk 0:00:17.8]} 0-1

[Event "*** Titled Tuesday 3|2 Blitz"]
[Site "Chess.com"]
[Date "2016.01.05"]
[Round "7"]
[White "Malev212"]
[Black "cool64chess"]
[Result "1-0"]
[WhiteElo "2269"]
[BlackElo "2217"]
[TimeControl "180+2"]
[EndTime "12:26:45 PST"]
[Termination "Malev212 won by resignation"]

1. e4 {[%clk 0:03:00.7]} 1... e6 {[%clk 0:02:58.3]} 2. Qe2 {[%clk 0:02:59.7]}
2... c5 {[%clk 0:02:58.7]} 3. f4 {[%clk 0:02:58.6]} 3... Nc6 {[%clk 0:02:59.1]}
4. Nf3 {[%clk 0:02:57.3]} 4... d6 {[%clk 0:02:58.7]} 5. g3 {[%clk 0:02:46.2]}
5... Nf6 {[%clk 0:02:56.4]} 6. Bg2 {[%clk 0:02:47]} 6... Be7 {[%clk 0:02:56.6]}
7. O-O {[%clk 0:02:47.2]} 7... O-O {[%clk 0:02:57]} 8. d3 {[%clk 0:02:47.9]}
8... Qc7 {[%clk 0:02:48.7]} 9. Nbd2 {[%clk 0:02:46.1]} 9... b6 {[%clk
0:02:46.5]} 10. e5 {[%clk 0:02:46.8]} 10... dxe5 {[%clk 0:02:44.3]} 11. fxe5
{[%clk 0:02:46.8]} 11... Nd7 {[%clk 0:02:43.4]} 12. Nc4 {[%clk 0:02:19]} 12...
Bb7 {[%clk 0:02:39.5]} 13. Bf4 {[%clk 0:02:17.9]} 13... b5 {[%clk 0:02:37]} 14.
Na3 {[%clk 0:02:06.1]} 14... a6 {[%clk 0:02:34.6]} 15. c4 {[%clk 0:02:06.7]}
15... Nd4 {[%clk 0:02:28.3]} 16. Nxd4 {[%clk 0:02:06.1]} 16... cxd4 {[%clk
0:02:27.7]} 17. Rac1 {[%clk 0:01:50.1]} 17... Bxg2 {[%clk 0:02:23]} 18. Qxg2
{[%clk 0:01:50.5]} 18... Qb6 {[%clk 0:02:06.7]} 19. cxb5 {[%clk 0:01:35.9]}
19... Bxa3 {[%clk 0:02:02.9]} 20. bxa3 {[%clk 0:01:30.8]} 20... axb5 {[%clk
0:02:02.5]} 21. Rc6 {[%clk 0:01:13.8]} 21... Qb7 {[%clk 0:02:01.3]} 22. Rfc1
{[%clk 0:01:03.8]} 22... Nb6 {[%clk 0:01:44.8]} 23. Bd2 {[%clk 0:00:38]} 23...
Nd5 {[%clk 0:01:36.7]} 24. Bb4 {[%clk 0:00:38.6]} 24... Rfc8 {[%clk 0:01:35.8]}
25. Qc2 {[%clk 0:00:36.2]} 25... Rxc6 {[%clk 0:01:24.1]} 26. Qxc6 {[%clk
0:00:35.7]} 26... Qxc6 {[%clk 0:01:24.7]} 27. Rxc6 {[%clk 0:00:36.3]} 27... h5
{[%clk 0:01:16.2]} 28. Bc5 {[%clk 0:00:36.7]} 28... Nc3 {[%clk 0:01:12.4]} 29.
Kf2 {[%clk 0:00:33.5]} 29... Nxa2 {[%clk 0:01:11.2]} 30. Rb6 {[%clk 0:00:31.5]}
30... Nc1 {[%clk 0:01:04]} 31. Bxd4 {[%clk 0:00:27.3]} 31... Nxd3+ {[%clk
0:00:58.3]} 32. Ke2 {[%clk 0:00:27.9]} 32... Rxa3 {[%clk 0:00:56.1]} 33. Rxb5
{[%clk 0:00:28.7]} 33... Rb3 {[%clk 0:00:54.3]} 34. Rxb3 {[%clk 0:00:24.2]}
34... Nc1+ {[%clk 0:00:55.4]} 35. Kd1 {[%clk 0:00:24.3]} 35... Nxb3 {[%clk
0:00:56.9]} 36. Bb6 {[%clk 0:00:25.1]} 36... g5 {[%clk 0:00:45.3]} 37. Kc2
{[%clk 0:00:25]} 37... Kg7 {[%clk 0:00:46.5]} 38. Kxb3 {[%clk 0:00:21.8]} 38...
f6 {[%clk 0:00:47.1]} 39. Kc4 {[%clk 0:00:21.2]} 39... fxe5 {[%clk 0:00:43.8]}
40. Kd3 {[%clk 0:00:21.9]} 40... h4 {[%clk 0:00:38.2]} 41. Ke4 {[%clk
0:00:22.1]} 41... Kf6 {[%clk 0:00:37.2]} 42. g4 {[%clk 0:00:22.1]} 1-0

[Event "*** Titled Tuesday 3|2 Blitz"]
[Site "Chess.com"]
[Date "2016.01.05"]
[Round "7"]
[White "bugsbunny444"]
[Black "Cats4Sale"]
[Result "0-1"]
[WhiteElo "2349"]
[BlackElo "2280"]
[TimeControl "180+2"]
[EndTime "12:26:56 PST"]
[Termination "Cats4Sale won by checkmate"]

1. Nf3 {[%clk 0:03:01.9]} 1... b6 {[%clk 0:02:52.2]} 2. g3 {[%clk 0:03:02.7]}
2... Bb7 {[%clk 0:02:52.7]} 3. Bg2 {[%clk 0:03:04.6]} 3... f5 {[%clk 0:02:51.4]}
4. O-O {[%clk 0:03:05.3]} 4... Nf6 {[%clk 0:02:52.3]} 5. c4 {[%clk 0:03:02.7]}
5... e6 {[%clk 0:02:51.5]} 6. d4 {[%clk 0:03:01.9]} 6... Be7 {[%clk 0:02:50]} 7.
d5 {[%clk 0:03:02.5]} 7... Qc8 {[%clk 0:02:38]} 8. Nd4 {[%clk 0:02:45.1]} 8...
Na6 {[%clk 0:01:35.3]} 9. Nc3 {[%clk 0:02:41.4]} 9... Nc5 {[%clk 0:01:29.8]} 10.
b3 {[%clk 0:02:04.5]} 10... O-O {[%clk 0:01:16.2]} 11. Bb2 {[%clk 0:02:01.7]}
11... g6 {[%clk 0:01:04.4]} 12. Qc2 {[%clk 0:01:32.4]} 12... e5 {[%clk
0:01:00.8]} 13. Nf3 {[%clk 0:01:32.9]} 13... d6 {[%clk 0:00:58.1]} 14. Nd2
{[%clk 0:01:12.2]} 14... a5 {[%clk 0:00:55.1]} 15. a3 {[%clk 0:01:12.8]} 15...
Na6 {[%clk 0:00:47]} 16. Nb5 {[%clk 0:01:00.9]} 16... c6 {[%clk 0:00:38.5]} 17.
dxc6 {[%clk 0:00:50.3]} 17... Bxc6 {[%clk 0:00:39.1]} 18. Rfd1 {[%clk
0:00:36.8]} 18... Bxg2 {[%clk 0:00:29.1]} 19. Kxg2 {[%clk 0:00:37.2]} 19... Qc6+
{[%clk 0:00:30.8]} 20. f3 {[%clk 0:00:32.6]} 20... Nc5 {[%clk 0:00:20.2]} 21.
Nf1 {[%clk 0:00:27.8]} 21... a4 {[%clk 0:00:17.6]} 22. b4 {[%clk 0:00:14.8]}
22... Nb3 {[%clk 0:00:19.1]} 23. Rab1 {[%clk 0:00:16.3]} 23... Rfc8 {[%clk
0:00:20.7]} 24. Ne3 {[%clk 0:00:03.9]} 24... Ng4 {[%clk 0:00:22.4]} 25. Nxg4
{[%clk 0:00:02.7]} 25... fxg4 {[%clk 0:00:24.1]} 26. Qd3 {[%clk 0:00:04]} 26...
gxf3+ {[%clk 0:00:22.2]} 27. exf3 {[%clk 0:00:05.5]} 27... Qxc4 {[%clk
0:00:20.9]} 28. Nxd6 {[%clk 0:00:03.2]} 28... Qc2+ {[%clk 0:00:21.6]} 29. Kh3
{[%clk 0:00:02.2]} 29... Bxd6 {[%clk 0:00:14.5]} 30. Qxd6 {[%clk 0:00:03.1]}
30... Qf5+ {[%clk 0:00:16.2]} 31. Kg2 {[%clk 0:00:02.3]} 31... Rc2+ {[%clk
0:00:17.9]} 32. Kg1 {[%clk 0:00:02.9]} 32... Qxf3 {[%clk 0:00:07]} 33. Qe6+
{[%clk 0:00:04.3]} 33... Kf8 {[%clk 0:00:08.4]} 34. Rf1 {[%clk 0:00:05.6]} 34...
Rg2+ {[%clk 0:00:09.6]} 35. Kh1 {[%clk 0:00:05.3]} 35... Rf2+ {[%clk 0:00:11.3]}
36. Kg1 {[%clk 0:00:03.3]} 36... Qg2# {[%clk 0:00:11.9]} 0-1

[Event "*** Titled Tuesday 3|2 Blitz"]
[Site "Chess.com"]
[Date "2016.01.05"]
[Round "7"]
[White "BjarkeSahl"]
[Black "tac49"]
[Result "0-1"]
[WhiteElo "2118"]
[BlackElo "2456"]
[TimeControl "180+2"]
[EndTime "12:26:57 PST"]
[Termination "tac49 won by resignation"]

1. e4 {[%clk 0:03:01.9]} 1... e5 {[%clk 0:02:39.4]} 2. Nf3 {[%clk 0:03:00.2]}
2... Nc6 {[%clk 0:02:39.9]} 3. d4 {[%clk 0:03:01]} 3... exd4 {[%clk 0:02:39.8]}
4. Bc4 {[%clk 0:03:02.6]} 4... Nf6 {[%clk 0:02:39.5]} 5. e5 {[%clk 0:03:04.1]}
5... d5 {[%clk 0:02:39.2]} 6. Bb5 {[%clk 0:03:05.5]} 6... Ne4 {[%clk 0:02:38.2]}
7. Nxd4 {[%clk 0:03:05.9]} 7... Bc5 {[%clk 0:02:33.3]} 8. O-O {[%clk 0:02:59.7]}
8... O-O {[%clk 0:02:31.2]} 9. Bxc6 {[%clk 0:02:45.2]} 9... bxc6 {[%clk
0:02:30.7]} 10. f3 {[%clk 0:02:43.6]} 10... Ng5 {[%clk 0:02:21.7]} 11. Be3
{[%clk 0:02:43.9]} 11... Ne6 {[%clk 0:02:09.7]} 12. Qd2 {[%clk 0:02:37.3]} 12...
Bxd4 {[%clk 0:02:06.5]} 13. Bxd4 {[%clk 0:02:38.1]} 13... c5 {[%clk 0:02:07.6]}
14. Bf2 {[%clk 0:02:33]} 14... Bb7 {[%clk 0:02:05.8]} 15. Nc3 {[%clk 0:02:22]}
15... d4 {[%clk 0:02:04.5]} 16. Nb1 {[%clk 0:02:00.4]} 16... Qd5 {[%clk
0:02:00.5]} 17. Re1 {[%clk 0:01:55.6]} 17... f6 {[%clk 0:02:00.5]} 18. b3 {[%clk
0:01:54.6]} 18... fxe5 {[%clk 0:01:56]} 19. c4 {[%clk 0:01:55.5]} 19... Qd6
{[%clk 0:01:48.3]} 20. Na3 {[%clk 0:01:47.3]} 20... Nf4 {[%clk 0:01:47.8]} 21.
Nb5 {[%clk 0:01:34.3]} 21... Qc6 {[%clk 0:01:27.1]} 22. Bg3 {[%clk 0:01:17.3]}
22... a6 {[%clk 0:01:25.5]} 23. Bxf4 {[%clk 0:00:48.1]} 23... Rxf4 {[%clk
0:01:19.5]} 24. Rxe5 {[%clk 0:00:41.1]} 24... Rxf3 {[%clk 0:01:15.8]} 25. Rae1
{[%clk 0:00:31.3]} 25... Re3 {[%clk 0:01:07.2]} 26. Na3 {[%clk 0:00:16.7]} 26...
Rxe5 {[%clk 0:01:06]} 27. Rxe5 {[%clk 0:00:17.5]} 27... Rf8 {[%clk 0:01:05.5]}
28. Nc2 {[%clk 0:00:16.4]} 28... Rf1+ {[%clk 0:00:51.7]} 29. Kxf1 {[%clk
0:00:15.8]} 29... Qf6+ {[%clk 0:00:53.6]} 30. Qf2 {[%clk 0:00:11.2]} 30... Qxe5
{[%clk 0:00:53.6]} 31. Ne1 {[%clk 0:00:12.8]} 31... Be4 {[%clk 0:00:52]} 32. Qg3
{[%clk 0:00:11.2]} 32... Qxg3 {[%clk 0:00:50.5]} 33. hxg3 {[%clk 0:00:11.6]}
33... a5 {[%clk 0:00:32.9]} 34. Ke2 {[%clk 0:00:12.7]} 34... Kf7 {[%clk
0:00:33.5]} 35. a3 {[%clk 0:00:11.2]} 35... Ke6 {[%clk 0:00:32.3]} 36. Kf2
{[%clk 0:00:10.9]} 36... Kf5 {[%clk 0:00:30.9]} 37. Ke2 {[%clk 0:00:11.2]} 37...
Kg4 {[%clk 0:00:31]} 38. Kf2 {[%clk 0:00:12.7]} 38... h5 {[%clk 0:00:31.1]} 0-1

[Event "*** Titled Tuesday 3|2 Blitz"]
[Site "Chess.com"]
[Date "2016.01.05"]
[Round "7"]
[White "aspired"]
[Black "StellarChessPro"]
[Result "1/2-1/2"]
[WhiteElo "2341"]
[BlackElo "2212"]
[TimeControl "180+2"]
[EndTime "12:27:06 PST"]
[Termination "Game drawn by agreement"]

1. e4 {[%clk 0:03:01.9]} 1... c6 {[%clk 0:03:00.9]} 2. Nf3 {[%clk 0:03:02.7]}
2... d5 {[%clk 0:03:01.8]} 3. Nc3 {[%clk 0:03:04.6]} 3... dxe4 {[%clk
0:03:02.9]} 4. Nxe4 {[%clk 0:03:05.1]} 4... Nf6 {[%clk 0:03:04.8]} 5. Nxf6+
{[%clk 0:03:05.4]} 5... exf6 {[%clk 0:03:06.7]} 6. Bc4 {[%clk 0:03:06.8]} 6...
Bd6 {[%clk 0:03:07.9]} 7. Qe2+ {[%clk 0:03:07.6]} 7... Qe7 {[%clk 0:03:08.4]} 8.
Qxe7+ {[%clk 0:03:08]} 8... Kxe7 {[%clk 0:03:10.3]} 9. d4 {[%clk 0:03:08.2]}
9... Re8 {[%clk 0:03:10.6]} 10. O-O {[%clk 0:03:07.4]} 10... Kf8 {[%clk
0:03:06.7]} 11. h3 {[%clk 0:03:06.6]} 11... Nd7 {[%clk 0:03:06]} 12. Bd2 {[%clk
0:03:01.8]} 12... b5 {[%clk 0:03:06.3]} 13. Bd3 {[%clk 0:03:02]} 13... Nb6
{[%clk 0:03:05]} 14. Rfe1 {[%clk 0:03:01.8]} 14... Be6 {[%clk 0:03:05.3]} 15. b3
{[%clk 0:03:01.1]} 15... b4 {[%clk 0:03:03.4]} 16. a3 {[%clk 0:02:53]} 16... a5
{[%clk 0:02:55.9]} 17. axb4 {[%clk 0:02:50.2]} 17... axb4 {[%clk 0:02:55.9]} 18.
Kf1 {[%clk 0:02:47.5]} 18... h6 {[%clk 0:02:49.3]} 19. Ng1 {[%clk 0:02:36.8]}
19... Rxa1 {[%clk 0:02:39.4]} 20. Rxa1 {[%clk 0:02:36.8]} 20... Ra8 {[%clk
0:02:39.9]} 21. Rxa8+ {[%clk 0:02:37.2]} 21... Nxa8 {[%clk 0:02:41.8]} 22. Be4
{[%clk 0:02:37.9]} 22... Bd5 {[%clk 0:02:39.2]} 23. Bxd5 {[%clk 0:02:38.6]}
23... cxd5 {[%clk 0:02:41.1]} 24. Ke2 {[%clk 0:02:35.5]} 24... Nc7 {[%clk
0:02:34.4]} 25. Kd3 {[%clk 0:02:35.4]} 25... Ke7 {[%clk 0:02:34]} 26. Ne2 {[%clk
0:02:35.3]} 26... Kd7 {[%clk 0:02:26.7]} 27. Ke3 {[%clk 0:02:28.1]} 27... f5
{[%clk 0:02:25.7]} 28. g3 {[%clk 0:02:24.8]} 28... Ne6 {[%clk 0:02:25.1]} 29. h4
{[%clk 0:02:19.8]} 29... g5 {[%clk 0:02:22.2]} 30. hxg5 {[%clk 0:02:19.8]} 30...
hxg5 {[%clk 0:02:24.1]} 31. f4 {[%clk 0:02:10.1]} 31... f6 {[%clk 0:02:08.5]}
32. Kf3 {[%clk 0:02:06.8]} 32... Ke7 {[%clk 0:02:07.9]} 33. Be3 {[%clk
0:02:03.6]} 33... Kf7 {[%clk 0:02:08.1]} 34. Nc1 {[%clk 0:02:01.7]} 34... Kg6
{[%clk 0:02:05]} 35. Nd3 {[%clk 0:02:02.2]} 35... Nc7 {[%clk 0:01:59.7]} 36. Bd2
{[%clk 0:01:58.4]} 36... Na6 {[%clk 0:01:46.7]} 37. Be1 {[%clk 0:01:53.1]} 37...
g4+ {[%clk 0:01:42.8]} 38. Ke2 {[%clk 0:01:50.4]} 38... Kf7 {[%clk 0:01:44.3]}
39. c4 {[%clk 0:01:40.9]} 39... bxc3 {[%clk 0:01:42.2]} 40. Bxc3 {[%clk
0:01:41.3]} 40... Ke6 {[%clk 0:01:42.6]} 41. Ne1 {[%clk 0:01:35.8]} 41... Nc7
{[%clk 0:01:41.7]} 42. Nc2 {[%clk 0:01:35.6]} 42... Nb5 {[%clk 0:01:41.3]} 43.
Bd2 {[%clk 0:01:35.4]} 43... Bc7 {[%clk 0:01:39.5]} 44. Kd3 {[%clk 0:01:35.4]}
44... Nd6 {[%clk 0:01:36.6]} 45. Be1 {[%clk 0:01:34.3]} 45... Ne4 {[%clk
0:01:35.9]} 46. Ne3 {[%clk 0:01:24.5]} 46... Bd6 {[%clk 0:01:35.4]} 47. Nd1
{[%clk 0:01:22]} 47... Be7 {[%clk 0:01:32.8]} 48. Nb2 {[%clk 0:01:21.3]} 48...
Ba3 {[%clk 0:01:29.5]} 49. Na4 {[%clk 0:01:19.6]} 49... Kd6 {[%clk 0:01:24.7]}
50. Nc3 {[%clk 0:01:05.2]} 50... Bb4 {[%clk 0:01:08.2]} 51. Nb5+ {[%clk
0:00:50.4]} 51... Kc6 {[%clk 0:01:08.8]} 52. Na7+ {[%clk 0:00:42.2]} 52... Kb7
{[%clk 0:01:02.7]} 53. Bxb4 {[%clk 0:00:44.1]} 53... Kxa7 {[%clk 0:01:02.3]} 54.
Be1 {[%clk 0:00:44.6]} 54... Kb6 {[%clk 0:01:03.4]} 55. Kc2 {[%clk 0:00:44]}
55... Kb5 {[%clk 0:01:01.6]} 56. Kd3 {[%clk 0:00:42]} 1/2-1/2